[Event "47th GRE-chT 2019"]
[Site "Patra"]
[Date "2019.07.03"]
[Round "2.18"]
[White "Papadopoulos, Argirios"]
[Black "Kazakos, Markos"]
[Result "0-1"]
[ECO "C28"]
[WhiteElo "2222"]
[BlackElo "2069"]
[Annotator "NA"]
[PlyCount "84"]
[EventDate "2019.07.02"]
[EventCountry "GRE"]
[SourceTitle "playchess.com"]
[Source "ChessBase"]
[SourceQuality "1"]
[TimeControl "5400+30"]

1. e4 {[%emt 0:00:00]} e5 {[%emt 0:05:38]} 2. Bc4 {[%emt 0:00:00]} Nf6 {[%emt 0:01:38]} 3. d3 {[%emt 0:00:32]} Nc6 {[%emt 0:06:00]} 4. Nc3 {[%emt 0:03:45]} d6 {[%emt 0:04:49]} 5. h3 {[%emt 0:01:22]} g6 {[%emt 0:04:57]} 6. a3 {[%emt 0:02:29]} Bg7 {[%emt 0:05:24]} 7. Nge2 {[%emt 0:03:38]} O-O {[%emt 0:00:28]} 8. O-O {[%emt 0:05:13]} Be6 {[%emt 0:14:26]} 9. Bxe6 {[%emt 0:00:09]} fxe6 {[%emt 0:01:22]} 10. f4 {[%emt 0:08:18]} Nh5 {[%emt 0:08:55]} 11. fxe5 {[%emt 0:04:21]} Rxf1+ {[%emt 0:01:00]} 12. Qxf1 {[%emt 0:01:02]} Bxe5 {[%emt 0:07:58]} 13. Qf2 {[%emt 0:08:55]} Qf6 {[%emt 0:01:53]} 14. Qxf6 {[%emt 0:07:44]} Nxf6 {[%emt 0:06:40]} 15. Nb5 $11 {[%emt 0:04:10]} Ne8 {[%emt 0:05:02]} 16. d4 {[%emt 0:02:10]} Bg7 {[%emt 0:01:30]} 17. Be3 {[%emt 0:02:40]} a6 {[%emt 0:01:08]} 18. Nbc3 {[%emt 0:02:12]} e5 {[%emt 0:15:08]} 19. d5 {[%emt 0:03:31]} Nd4 {[%emt 0:00:52]} 20. Rc1 {[%emt 0:05:33]} c6 {[%emt 0:01:56]} 21. Kf1 {[%emt 0:01:16]} Nc7 {[%emt 0:03:10]} 22. Ke1 {[%emt 0:00:57]} Re8 {[%emt 0:00:25]} 23. Kd2 {[%emt 0:02:39]} cxd5 {[%emt 0:00:31]} 24. Nxd5 {[%emt 0:00:06]} Nxd5 {[%emt 0:00:14]} 25. exd5 {[%emt 0:00:05]} Nf5 {[%emt 0:00:54]} 26. Rf1 {[%emt 0:05:22]} b5 {[%emt 0:00:30]} 27. b3 {[%emt 0:01:12]} Rc8 {[%emt 0:00:30]} 28. c3 {[%emt 0:00:13]} Ne7 {[%emt 0:00:30]} 29. Ng3 {[%emt 0:00:21]} Nxd5 {[%emt 0:00:30]} 30. Ne4 {[%emt 0:00:21]} Nxe3 {[%emt 0:00:03]} 31. Kxe3 {[%emt 0:00:10]} d5 {[%emt 0:00:23]} 32. Nf6+ {[%emt 0:00:49]} Bxf6 {[%emt 0:00:02]} 33. Rxf6 {[%emt 0:00:09]} Rxc3+ {[%emt 0:00:33]} 34. Kd2 {[%emt 0:00:09]} Rxb3 {[%emt 0:01:28]} 35. Rxa6 {[%emt 0:01:55]} Rb2+ {[%emt 0:00:25]} 36. Kc3 {[%emt 0:00:57]} Rxg2 {[%emt 0:00:37]} 37. Rd6 {[%emt 0:02:22]} d4+ {[%emt 0:00:23]} 38. Kd3 {[%emt 0:01:47]} Kf7 {[%emt 0:00:33]} 39. Ke4 {[%emt 0:00:27]} Re2+ {[%emt 0:00:00]} 40. Kd5 {[%emt 0:00:00]} d3 {[%emt 0:00:00]} 41. Kc5 {[%emt 0:00:00]} d2 {[%emt 0:00:00]} 42. Kxb5 {[%emt 0:00:00]} e4 {[%emt 0:00:00]} 0-1

[Event "47th GRE-chT 2019"]
[Site "Patra"]
[Date "2019.07.03"]
[Round "2.18"]
[White "Androutsopoulos-Agiotatos, Vasil"]
[Black "Makris, Spyridon-Dionysios"]
[Result "1/2-1/2"]
[ECO "C49"]
[WhiteElo "2063"]
[BlackElo "1884"]
[Annotator "NA"]
[PlyCount "63"]
[EventDate "2019.07.02"]
[EventCountry "GRE"]
[SourceTitle "playchess.com"]
[Source "ChessBase"]
[SourceQuality "1"]
[TimeControl "5400+30"]

1. e4 {[%emt 0:00:00]} e5 {[%emt 0:00:00]} 2. Nf3 {[%emt 0:00:00]} Nc6 {[%emt 0:00:00]} 3. Nc3 {[%emt 0:00:10]} Nf6 {[%emt 0:00:00]} 4. Bb5 {[%emt 0:00:04]} Bb4 {[%emt 0:01:19]} 5. O-O {[%emt 0:00:52]} O-O {[%emt 0:01:37]} 6. d3 {[%emt 0:00:22]} d6 {[%emt 0:01:14]} 7. Ne2 {[%emt 0:00:14]} Bg4 {[%emt 0:07:37]} 8. c3 {[%emt 0:01:36]} Bc5 {[%emt 0:07:49]} 9. Ng3 {[%emt 0:05:56]} d5 {[%emt 0:11:58]} 10. h3 {[%emt 0:05:22]} dxe4 {[%emt 0:01:45]} 11. hxg4 {[%emt 0:01:03]} exf3 {[%emt 0:00:14]} 12. Qxf3 {[%emt 0:00:05]} Qd5 {[%emt 0:01:04]} 13. a4 {[%emt 0:13:34]} Qxf3 {[%emt 0:08:29]} 14. gxf3 {[%emt 0:00:08]} a5 $14 {[%emt 0:01:42]} 15. Re1 {[%emt 0:06:36]} Bd6 {[%emt 0:10:50]} 16. Bg5 {[%emt 0:12:57]} Nd5 {[%emt 0:08:01]} 17. Bc4 {[%emt 0:03:19]} Nf4 {[%emt 0:03:26]} 18. Bxf4 {[%emt 0:05:41]} exf4 {[%emt 0:00:06]} 19. Nf5 {[%emt 0:03:06]} Ne5 {[%emt 0:03:26]} 20. Kg2 {[%emt 0:00:59]} Nxc4 {[%emt 0:00:18]} 21. dxc4 {[%emt 0:00:02]} Rfd8 {[%emt 0:00:18]} 22. Nxd6 {[%emt 0:04:40]} Rxd6 {[%emt 0:00:07]} 23. Re7 {[%emt 0:00:02]} Rc8 {[%emt 0:02:28]} 24. Rae1 {[%emt 0:03:46]} Kf8 {[%emt 0:00:38]} 25. R1e2 {[%emt 0:05:36]} h6 {[%emt 0:03:33]} 26. R7e5 {[%emt 0:13:23]} c5 {[%emt 0:02:57]} 27. Re7 {[%emt 0:09:05]} b6 {[%emt 0:00:19]} 28. R2e4 {[%emt 0:01:59]} g5 {[%emt 0:00:21]} 29. Re2 {[%emt 0:01:40]} Rcd8 {[%emt 0:00:07]} 30. Rb7 {[%emt 0:00:20]} Re8 {[%emt 0:00:11]} 31. Rxe8+ {[%emt 0:00:21]} Kxe8 {[%emt 0:00:07]} 32. Kf1 {[%emt 0:00:24]} 1/2-1/2

[Event "47th GRE-chT 2019"]
[Site "Patra"]
[Date "2019.07.03"]
[Round "2.19"]
[White "Tsarsitalidis, Konstantinos"]
[Black "Patrelakis, Evaggelos"]
[Result "0-1"]
[ECO "B80"]
[WhiteElo "2001"]
[BlackElo "2209"]
[Annotator "NA"]
[PlyCount "114"]
[EventDate "2019.07.02"]
[EventCountry "GRE"]
[SourceTitle "playchess.com"]
[Source "ChessBase"]
[SourceQuality "1"]
[TimeControl "5400+30"]

1. e4 {[%emt 0:00:00]} c5 {[%emt 0:00:00]} 2. Nf3 {[%emt 0:00:00]} d6 {[%emt 0:00:00]} 3. d4 {[%emt 0:00:00]} cxd4 {[%emt 0:00:00]} 4. Nxd4 {[%emt 0:00:00]} Nf6 {[%emt 0:00:05]} 5. Nc3 {[%emt 0:00:00]} a6 {[%emt 0:00:06]} 6. g3 {[%emt 0:00:00]} e6 {[%emt 0:00:22]} 7. Bg2 {[%emt 0:00:03]} Be7 {[%emt 0:01:10]} 8. O-O {[%emt 0:01:20]} O-O {[%emt 0:00:06]} 9. f4 {[%emt 0:00:34]} Qc7 {[%emt 0:04:48]} 10. g4 {[%emt 0:00:26]} Nc6 {[%emt 0:04:20]} 11. Nxc6 {[%emt 0:03:43]} bxc6 {[%emt 0:00:38]} 12. g5 {[%emt 0:00:08]} Nd7 {[%emt 0:08:46]} 13. f5 {[%emt 0:04:33]} exf5 {[%emt 0:00:09] B80: Sicilian Scheveningen: 6 g3 and 6 Be3, including English Attack} (13... Re8 14. f6 Bf8 15. fxg7 Bxg7 16. Ne2 a5 17. Ng3 Ba6 18. Rf4 Be5 19. Nh5 Bxf4 20. Bxf4 e5 21. Be3 {1-0 (32) Brkic,A (2581)-Palac,M (2579) Plitvicka Jezera 2013}) 14. exf5 {[%emt 0:00:08]} d5 {[%emt 0:00:57]} 15. Kh1 {[%emt 0:04:46]} Bd6 {[%emt 0:05:23]} 16. Qh5 {[%emt 0:05:28]} Re8 {[%emt 0:04:22]} 17. g6 $146 {[%emt 0:12:12]} ({Predecessor:} 17. Qh4 Rb8 18. a3 Ne5 19. f6 Ng6 20. Qh5 gxf6 21. gxf6 {0-1 (40) Feistenauer,F (2330)-Novkovic,M (2395) Vorarlberg 1996}) 17... Nf6 {[%emt 0:02:20]} 18. Qh4 {[%emt 0:01:06]} fxg6 {[%emt 0:06:31]} 19. fxg6 {[%emt 0:02:27]} hxg6 {[%emt 0:00:44]} 20. Bg5 {[%emt 0:00:21]} Nh7 {[%emt 0:02:11]} 21. Bd2 {[%emt 0:21:02]} Bf5 {[%emt 0:02:09]} 22. Rf3 {[%emt 0:02:19]} Be5 {[%emt 0:02:31]} 23. Raf1 {[%emt 0:01:20]} Bf6 {[%emt 0:01:45]} 24. Qf2 {[%emt 0:06:51]} d4 $17 {[%emt 0:01:08]} (24... Qe7 $19 25. Bf4 Qb4) 25. Ne2 {[%emt 0:03:30]} Bg4 {[%emt 0:06:16]} 26. Nxd4 {[%emt 0:00:06]} Bxf3 {[%emt 0:03:39]} 27. Bxf3 {[%emt 0:00:32]} Qb6 {[%emt 0:09:08]} 28. c3 {[%emt 0:08:32]} Bxd4 {[%emt 0:03:32]} 29. cxd4 {[%emt 0:00:09]} Qxb2 {[%emt 0:04:47]} 30. Qg2 {[%emt 0:09:09]} Rf8 {[%emt 0:03:04]} 31. d5 {[%emt 0:04:41]} Rad8 {[%emt 0:02:08]} 32. Ba5 {[%emt 0:00:12]} Qxg2+ {[%emt 0:00:49]} 33. Kxg2 {[%emt 0:00:01]} cxd5 {[%emt 0:00:53]} 34. Bxd8 {[%emt 0:00:14]} Rxd8 {[%emt 0:00:02]} 35. Rd1 {[%emt 0:00:20]} Nf6 {[%emt 0:00:34]} 36. Kf2 {[%emt 0:00:06]} Kf7 {[%emt 0:01:50]} 37. Rd4 {[%emt 0:00:49]} Ke6 {[%emt 0:00:27]} 38. Ke3 {[%emt 0:02:10]} Ke5 {[%emt 0:06:42]} 39. Be2 {[%emt 0:00:54]} Rh8 {[%emt 0:01:22]} 40. h4 {[%emt 0:00:00]} g5 {[%emt 0:00:00]} 41. h5 {[%emt 0:00:00]} g6 {[%emt 0:00:00]} 42. h6 {[%emt 0:00:00]} Rxh6 {[%emt 0:00:00]} 43. Ra4 {[%emt 0:00:00]} Rh3+ {[%emt 0:00:00]} 44. Kf2 {[%emt 0:00:00]} Rh2+ {[%emt 0:00:00]} 45. Ke1 {[%emt 0:00:00]} Rh1+ {[%emt 0:00:00]} 46. Kf2 {[%emt 0:00:00]} Ne4+ {[%emt 0:00:00]} 47. Kg2 {[%emt 0:00:00]} Rb1 {[%emt 0:00:00]} 48. Bf3 {[%emt 0:00:00]} Rb6 {[%emt 0:00:00]} 49. Ra5 {[%emt 0:00:00]} Kf4 {[%emt 0:00:00]} 50. Ra3 {[%emt 0:00:00]} g4 {[%emt 0:00:00]} 51. Bd1 {[%emt 0:00:00]} Rb2+ {[%emt 0:00:00]} 52. Kf1 {[%emt 0:00:00]} Rf2+ {[%emt 0:00:00]} 53. Kg1 {[%emt 0:00:00]} g3 {[%emt 0:00:00]} 54. Rxa6 {[%emt 0:00:00]} Rd2 {[%emt 0:00:00]} 55. Bb3 {[%emt 0:00:00]} Ng5 {[%emt 0:00:00]} 56. Rf6+ {[%emt 0:03:07]} Ke5 {[%emt 0:00:00]} 57. Rxg6 {[%emt 0:00:31]} Nf3+ {[%emt 0:00:00]} 0-1

[Event "47th GRE-chT 2019"]
[Site "Patra"]
[Date "2019.07.03"]
[Round "2.19"]
[White "Fragkos, Vasileios"]
[Black "Koutlas, Nikolaos"]
[Result "1-0"]
[ECO "B58"]
[WhiteElo "1901"]
[BlackElo "1969"]
[Annotator "NA"]
[PlyCount "77"]
[EventDate "2019.07.02"]
[EventCountry "GRE"]
[SourceTitle "playchess.com"]
[Source "ChessBase"]
[SourceQuality "1"]
[TimeControl "5400+30"]

1. e4 {[%emt 0:00:00]} c5 {[%emt 0:00:00]} 2. Nf3 {[%emt 0:00:00]} Nc6 {[%emt 0:00:00]} 3. d4 {[%emt 0:00:00]} cxd4 {[%emt 0:00:08]} 4. Nxd4 {[%emt 0:00:03]} Nf6 {[%emt 0:00:28]} 5. Nc3 {[%emt 0:00:18]} d6 {[%emt 0:00:42]} 6. Be2 {[%emt 0:00:41]} g6 {[%emt 0:00:54]} 7. O-O {[%emt 0:00:56]} Bg7 {[%emt 0:00:10]} 8. Nb3 {[%emt 0:00:58]} a6 {[%emt 0:01:42]} 9. Be3 {[%emt 0:00:20]} O-O {[%emt 0:03:34]} 10. f3 {[%emt 0:00:18] B74: Sicilian Dragon: Classical System with 9 Nb3} (10. f4 Be6 11. Kh1 b5 12. Bf3 Rc8 13. Nd5 Bxd5 14. exd5 Na5 15. Qe2 Nc4 16. Bd4 Qd7 17. Rae1 Rfe8 18. Qd1 e5 19. dxe6 fxe6 {1-0 (38) Harikrishna,P (2740)-Mamedov,N (2597) Kocaeli 2015}) 10... b5 {[%emt 0:10:41]} 11. Nd5 {[%emt 0:02:24]} Nxd5 {[%emt 0:04:11]} 12. exd5 {[%emt 0:04:37]} Ne5 {[%emt 0:01:16]} 13. c3 $146 {[%emt 0:11:32]} ({Predecessor:} 13. Bd4 Bb7 14. f4 Nd7 15. Bxg7 Kxg7 16. Bf3 Rc8 17. Qd2 Qb6+ {½-½ (59) Kindsvogel,R-Auer,D Germany 1998}) 13... Bb7 {[%emt 0:03:15]} 14. Qd2 {[%emt 0:04:22]} Nc4 {[%emt 0:08:13]} 15. Bxc4 $1 {[%emt 0:00:12]} bxc4 {[%emt 0:00:06]} 16. Nc1 $1 {[%emt 0:00:09]} Qa5 {[%emt 0:01:26]} 17. Rd1 {[%emt 0:00:21]} Rab8 {[%emt 0:02:34]} 18. Ba7 {[%emt 0:01:50]} Rbc8 {[%emt 0:03:47]} 19. Ne2 {[%emt 0:01:55]} Ba8 {[%emt 0:03:25]} 20. b4 {[%emt 0:08:49]} Qb5 {[%emt 0:07:35]} 21. a4 {[%emt 0:01:10]} Qd7 {[%emt 0:01:12]} 22. Bd4 $14 {[%emt 0:01:21]} Bxd4+ {[%emt 0:01:54]} 23. Qxd4 {[%emt 0:00:09]} h5 {[%emt 0:04:04]} 24. Ng3 {[%emt 0:02:37]} Rc7 {[%emt 0:05:37]} 25. Nf1 {[%emt 0:00:36]} a5 {[%emt 0:04:36]} 26. b5 {[%emt 0:00:43]} Rc5 {[%emt 0:00:12]} 27. Ne3 {[%emt 0:00:16]} Re8 {[%emt 0:07:19]} 28. Re1 {[%emt 0:07:10]} Qc8 {[%emt 0:07:23]} 29. Rad1 {[%emt 0:02:35]} e5 {[%emt 0:00:49]} 30. dxe6 {[%emt 0:00:07]} Rxe6 {[%emt 0:00:09]} 31. Qd2 {[%emt 0:12:38]} h4 {[%emt 0:03:08]} 32. h3 {[%emt 0:06:41]} Bxf3 {[%emt 0:10:47]} 33. gxf3 {[%emt 0:01:06]} Rxe3 {[%emt 0:02:45]} 34. Qxe3 {[%emt 0:04:47]} Qxh3 {[%emt 0:00:39]} 35. Qf4 {[%emt 0:00:19]} Rf5 {[%emt 0:00:49]} 36. Qg4 {[%emt 0:00:10]} Rg5 {[%emt 0:00:56]} 37. Qxg5 {[%emt 0:00:14]} Qxf3 {[%emt 0:00:04]} 38. Rxd6 {[%emt 0:00:29]} h3 {[%emt 0:00:17]} 39. Rxg6+ {[%emt 0:00:20]} 1-0

[Event "47th GRE-chT 2019"]
[Site "Patra"]
[Date "2019.07.03"]
[Round "2.20"]
[White "Dogias, Christos"]
[Black "Mourelatos, Spyridon"]
[Result "1-0"]
[ECO "C54"]
[WhiteElo "1409"]
[BlackElo "1626"]
[Annotator "NA"]
[PlyCount "101"]
[EventDate "2019.07.02"]
[EventCountry "GRE"]
[SourceTitle "playchess.com"]
[Source "ChessBase"]
[SourceQuality "1"]
[TimeControl "5400+30"]

1. e4 {[%emt 0:00:00]} e5 {[%emt 0:00:00]} 2. Nf3 {[%emt 0:00:00]} Nc6 {[%emt 0:00:00]} 3. Bc4 {[%emt 0:00:00]} Bc5 {[%emt 0:00:00]} 4. c3 {[%emt 0:00:12]} Nf6 {[%emt 0:00:00]} 5. d3 {[%emt 0:00:15]} d6 {[%emt 0:00:00]} 6. O-O {[%emt 0:00:00]} O-O {[%emt 0:02:08]} 7. h3 {[%emt 0:00:52]} Be6 {[%emt 0:03:19]} 8. Bb5 {[%emt 0:00:42]} a6 {[%emt 0:02:54]} 9. Ba4 {[%emt 0:00:09]} Ne7 {[%emt 0:02:14]} 10. d4 {[%emt 0:03:04]} exd4 {[%emt 0:00:38]} 11. cxd4 {[%emt 0:00:06]} Ba7 {[%emt 0:00:31]} 12. Nc3 {[%emt 0:00:58]} Ng6 {[%emt 0:06:12]} 13. Bc2 {[%emt 0:02:50]} Nh5 {[%emt 0:04:46]} 14. Ne2 {[%emt 0:07:12]} Qc8 {[%emt 0:07:27]} 15. Qd3 {[%emt 0:04:05]} Bxh3 {[%emt 0:04:16]} 16. gxh3 {[%emt 0:00:05]} Qxh3 {[%emt 0:00:09]} 17. Nh2 {[%emt 0:00:07]} Qxd3 {[%emt 0:09:34]} 18. Bxd3 {[%emt 0:01:22]} Rfe8 {[%emt 0:02:47]} 19. Be3 {[%emt 0:00:19]} Nf6 {[%emt 0:01:51]} 20. Ng3 {[%emt 0:00:12]} Rad8 {[%emt 0:02:10]} 21. Rac1 {[%emt 0:01:31]} c6 {[%emt 0:01:17]} 22. Nf3 {[%emt 0:01:02]} d5 {[%emt 0:02:22]} 23. e5 {[%emt 0:01:02]} Ng4 {[%emt 0:01:41]} 24. Bf5 {[%emt 0:00:27]} Nxe3 {[%emt 0:01:57]} 25. fxe3 {[%emt 0:00:06]} Ne7 {[%emt 0:04:12]} 26. Bd3 {[%emt 0:00:45]} Rd7 {[%emt 0:09:02]} 27. Ng5 {[%emt 0:01:42]} Ng6 {[%emt 0:00:10]} 28. Rf2 {[%emt 0:01:41]} h6 {[%emt 0:14:31]} 29. Nxf7 {[%emt 0:00:39]} Nf8 {[%emt 0:09:55]} 30. Nd6 {[%emt 0:01:27]} Rxd6 {[%emt 0:00:33]} 31. exd6 {[%emt 0:00:06]} Rxe3 {[%emt 0:01:37]} 32. Nf5 {[%emt 0:00:08]} Rxd3 {[%emt 0:01:13]} 33. Ne7+ {[%emt 0:00:09]} Kh7 {[%emt 0:00:09]} 34. Rxf8 {[%emt 0:00:08]} Bxd4+ {[%emt 0:00:28]} 35. Kf1 {[%emt 0:00:09]} Bb6 {[%emt 0:01:51]} 36. d7 {[%emt 0:00:05]} Rd2 {[%emt 0:01:08]} 37. Rb1 {[%emt 0:01:40]} Rh2 {[%emt 0:00:55]} 38. Re1 {[%emt 0:00:13]} Rxb2 {[%emt 0:00:52]} 39. d8=Q {[%emt 0:00:00]} Bxd8 {[%emt 0:00:00]} 40. Rxd8 {[%emt 0:00:00]} Rxa2 {[%emt 0:00:00]} 41. Rb8 {[%emt 0:00:00]} b5 {[%emt 0:00:00]} 42. Nxc6 {[%emt 0:00:00]} Ra4 {[%emt 0:00:00]} 43. Rd1 {[%emt 0:00:00]} Rc4 {[%emt 0:00:00]} 44. Ne5 {[%emt 0:00:00]} Rf4+ {[%emt 0:00:00]} 45. Kg2 {[%emt 0:00:00]} d4 {[%emt 0:00:00]} 46. Rb6 {[%emt 0:00:00]} Rf5 {[%emt 0:00:00]} 47. Nf3 {[%emt 0:00:00]} a5 {[%emt 0:00:00]} 48. Nxd4 {[%emt 0:00:00]} Rg5+ {[%emt 0:00:00]} 49. Kf3 {[%emt 0:00:00]} b4 {[%emt 0:00:00]} 50. Rb5 {[%emt 0:00:00]} Kg6 {[%emt 0:00:00]} 51. Rxg5+ {[%emt 0:53:33] Kf5} 1-0

[Event "47th GRE-chT 2019"]
[Site "Patra"]
[Date "2019.07.03"]
[Round "2.20"]
[White "Antonioudakis, Georgios"]
[Black "Tsarsitalidis, Christos"]
[Result "1-0"]
[ECO "C42"]
[WhiteElo "1385"]
[BlackElo "1802"]
[Annotator "NA"]
[PlyCount "71"]
[EventDate "2019.07.02"]
[EventCountry "GRE"]
[SourceTitle "playchess.com"]
[Source "ChessBase"]
[SourceQuality "1"]
[TimeControl "5400+30"]

1. e4 {[%emt 0:00:00]} e5 {[%emt 0:00:00]} 2. Nf3 {[%emt 0:00:00]} Nf6 {[%emt 0:00:00]} 3. Nxe5 {[%emt 0:00:00]} d6 {[%emt 0:00:00]} 4. Nf3 {[%emt 0:00:00]} Nxe4 {[%emt 0:00:00]} 5. Nc3 {[%emt 0:00:00]} Nxc3 {[%emt 0:00:00]} 6. dxc3 {[%emt 0:00:01]} Be7 {[%emt 0:00:00]} 7. Bf4 {[%emt 0:01:13]} O-O {[%emt 0:00:00]} 8. Qd2 {[%emt 0:01:17]} b6 {[%emt 0:00:13]} 9. h4 {[%emt 0:01:19]} Bb7 {[%emt 0:00:38]} 10. O-O-O {[%emt 0:01:41]} Nd7 {[%emt 0:07:35]} 11. Nd4 {[%emt 0:01:29]} Nc5 {[%emt 0:00:51]} 12. f3 {[%emt 0:01:23]} a5 {[%emt 0:04:25]} 13. g4 {[%emt 0:03:14]} Ne6 {[%emt 0:04:25]} 14. Be2 {[%emt 0:01:52]} Nxf4 {[%emt 0:00:04]} 15. Qxf4 {[%emt 0:10:43]} a4 {[%emt 0:06:07]} 16. g5 {[%emt 0:02:18]} a3 {[%emt 0:00:16]} 17. b3 {[%emt 0:01:15]} Ra5 {[%emt 0:14:49]} 18. Nf5 {[%emt 0:00:51]} Bc8 {[%emt 0:10:25]} 19. Nd4 {[%emt 0:00:53]} Bd7 {[%emt 0:07:27]} 20. Bd3 {[%emt 0:04:00]} g6 {[%emt 0:00:53]} 21. Qg3 {[%emt 0:05:04]} f6 {[%emt 0:01:44]} 22. f4 {[%emt 0:01:07]} fxg5 {[%emt 0:00:14]} 23. hxg5 {[%emt 0:00:41]} Rxf4 {[%emt 0:04:21]} 24. Bc4+ {[%emt 0:00:40]} d5 {[%emt 0:02:29]} 25. b4 {[%emt 0:02:28]} Bxg5 {[%emt 0:00:24]} 26. Kb1 {[%emt 0:11:04]} Rg4 {[%emt 0:04:34]} 27. Qf3 {[%emt 0:30:21]} Rf4 {[%emt 0:04:33]} 28. Qg3 {[%emt 0:10:14]} Ra7 {[%emt 0:00:33]} 29. Bxd5+ {[%emt 0:01:13]} Kh8 {[%emt 0:02:44]} 30. Nf3 {[%emt 0:01:57]} Rg4 {[%emt 0:01:57]} 31. Qh2 {[%emt 0:00:30]} Qe7 {[%emt 0:00:56]} 32. Qe5+ {[%emt 0:03:54]} Qg7 {[%emt 0:00:45]} 33. Nxg5 {[%emt 0:02:45]} Rxg5 {[%emt 0:00:09]} 34. Qxg5 {[%emt 0:00:04]} Qxc3 {[%emt 0:00:01]} 35. Qd8+ {[%emt 0:01:16]} Kg7 {[%emt 0:00:02]} 36. Qg8+ {[%emt 0:00:40]} 1-0

[Event "47th GRE-chT 2019"]
[Site "Patra"]
[Date "2019.07.03"]
[Round "2.22"]
[White "Martinovic, Sasa"]
[Black "Argiroudis, Stamatis"]
[Result "1-0"]
[ECO "E81"]
[WhiteElo "2560"]
[BlackElo "2284"]
[Annotator "ChessBase"]
[PlyCount "70"]
[EventDate "2019.07.02"]
[EventCountry "GRE"]
[SourceTitle "playchess.com"]
[Source "ChessBase"]
[SourceQuality "1"]
[TimeControl "5400+30"]

1. d4 {[%emt 0:00:00]} Nf6 {[%emt 0:00:00]} 2. c4 {[%emt 0:00:19]} g6 {[%emt 0:00:00]} 3. f3 {[%emt 0:00:19]} Bg7 {[%emt 0:00:00]} 4. e4 {[%emt 0:00:04]} d6 {[%emt 0:01:21]} 5. Be3 {[%emt 0:01:25]} c6 {[%emt 0:01:18]} 6. Nc3 {[%emt 0:01:03]} a6 {[%emt 0:01:21]} 7. e5 {[%emt 0:02:32]} Nfd7 {[%emt 0:00:06]} 8. exd6 {[%emt 0:01:58]} exd6 {[%emt 0:00:04]} 9. Qd2 {[%emt 0:00:27]} O-O {[%emt 0:00:34]} 10. O-O-O {[%emt 0:01:15]} b5 {[%emt 0:05:41]} 11. h4 {[%emt 0:10:36]} Nb6 {[%emt 0:05:23]} 12. c5 {[%emt 0:10:56]} dxc5 {[%emt 0:00:06]} 13. dxc5 {[%emt 0:00:09]} Qxd2+ {[%emt 0:13:16]} 14. Bxd2 {[%emt 0:05:01]} Na4 {[%emt 0:13:38]} 15. Nxa4 {[%emt 0:00:06]} bxa4 {[%emt 0:00:03]} 16. Ne2 {[%emt 0:10:16]} Nd7 {[%emt 0:08:32]} 17. Bc3 {[%emt 0:11:24]} a3 {[%emt 0:02:05]} 18. bxa3 {[%emt 0:05:09]} Bh6+ {[%emt 0:11:11]} 19. Bd2 {[%emt 0:03:48]} Bg7 {[%emt 0:02:45]} 20. Bf4 {[%emt 0:01:49]} Nxc5 {[%emt 0:07:09]} 21. Bd6 {[%emt 0:00:47]} Na4 {[%emt 0:01:24]} 22. Bxf8 {[%emt 0:00:19]} Kxf8 {[%emt 0:04:58]} 23. Nf4 {[%emt 0:10:01]} Nc3 {[%emt 0:01:59]} 24. Rd8+ {[%emt 0:00:20]} Ke7 {[%emt 0:00:20]} 25. Rd2 {[%emt 0:01:48]} Bh6 {[%emt 0:00:14]} 26. g3 {[%emt 0:07:37]} Bf5 {[%emt 0:08:40]} 27. Bh3 {[%emt 0:06:34]} Bxh3 {[%emt 0:00:04]} 28. Rxh3 {[%emt 0:00:50]} Rb8 {[%emt 0:04:47]} 29. Rb2 {[%emt 0:01:00]} Rd8 {[%emt 0:02:43]} 30. Rh1 {[%emt 0:02:41]} Nd5 {[%emt 0:00:47]} 31. Re1+ {[%emt 0:02:22]} Kd6 {[%emt 0:00:18]} 32. Re4 {[%emt 0:00:35]} f5 {[%emt 0:01:38]} 33. Ra4 {[%emt 0:01:40]} Ra8 {[%emt 0:01:04]} 34. Rb7 {[%emt 0:00:48]} Bxf4+ {[%emt 0:00:03]} 35. gxf4 {[%emt 0:01:32]} Kc5 {[%emt 3:32:03]} 1-0

[Event "47th GRE-chT 2019"]
[Site "Patra"]
[Date "2019.07.03"]
[Round "2.24"]
[White "Balokas, Dimitrios"]
[Black "Vragoteris, Antonios"]
[Result "1-0"]
[ECO "E11"]
[WhiteElo "2206"]
[BlackElo "2168"]
[Annotator "NA"]
[PlyCount "79"]
[EventDate "2019.07.02"]
[EventCountry "GRE"]
[SourceTitle "playchess.com"]
[Source "ChessBase"]
[SourceQuality "1"]
[TimeControl "5400+30"]

1. d4 {[%emt 0:01:36]} Nf6 {[%emt 0:00:00]} 2. c4 {[%emt 0:00:19]} e6 {[%emt 0:00:00]} 3. Nf3 {[%emt 0:00:39]} Bb4+ {[%emt 0:00:00]} 4. Bd2 {[%emt 0:00:15]} Qe7 {[%emt 0:00:27]} 5. g3 {[%emt 0:00:30]} Nc6 {[%emt 0:01:48]} 6. Nc3 {[%emt 0:00:45]} O-O {[%emt 0:00:05]} 7. Bg2 {[%emt 0:00:22]} Na5 {[%emt 0:01:16] E11: Bogo-Indian} (7... d6 8. Rc1 Bxc3 9. Bxc3 e5 10. d5 Nb8 11. O-O a5 12. Ne1 Nbd7 13. e4 Nc5 14. Qe2 Na4 15. Nd3 Nxc3 16. Rxc3 {½-½ (43) Stupak,K (2547)-Nisipeanu,L (2680) Budapest 2019}) 8. c5 {[%emt 0:09:32]} Nc4 {[%emt 0:03:37]} 9. Qb3 {[%emt 0:00:26]} Nxd2 {[%emt 0:03:08]} 10. Nxd2 {[%emt 0:02:07]} Bxc3 {[%emt 0:01:24]} 11. Qxc3 {[%emt 0:07:55]} d6 $146 {[%emt 0:05:53]} ({Predecessor:} 11... d5 12. cxd6 cxd6 13. O-O d5 14. Rac1 b6 15. b3 {1-0 (47) Loiseau,Q (2300)-Colin,V (2393) Naujac 2012}) 12. O-O {[%emt 0:07:52]} e5 {[%emt 0:12:14]} 13. d5 {[%emt 0:17:18]} e4 {[%emt 0:03:44]} 14. cxd6 {[%emt 0:01:54]} cxd6 {[%emt 0:00:30]} 15. Qd4 {[%emt 0:00:58]} Re8 {[%emt 0:04:52]} 16. Nc4 {[%emt 0:04:20]} Bd7 {[%emt 0:02:05]} 17. Rac1 {[%emt 0:00:34]} b6 {[%emt 0:04:31]} 18. Rc3 {[%emt 0:02:33]} Rac8 {[%emt 0:00:21]} 19. Rfc1 {[%emt 0:04:28]} h5 $11 {[%emt 0:01:40]} 20. Ne3 {[%emt 0:04:36]} h4 {[%emt 0:11:00]} 21. Rxc8 {[%emt 0:07:29]} Rxc8 {[%emt 0:00:26]} 22. Rxc8+ {[%emt 0:00:09]} Bxc8 {[%emt 0:01:00]} 23. gxh4 {[%emt 0:10:01]} g6 {[%emt 0:20:32]} 24. Nd1 {[%emt 0:01:49]} Bf5 {[%emt 0:00:35]} 25. Ne3 {[%emt 0:00:44]} Bd7 {[%emt 0:01:52]} 26. h5 {[%emt 0:01:12]} gxh5 {[%emt 0:01:54]} 27. Qc3 {[%emt 0:01:27]} Kg7 {[%emt 0:02:02]} 28. Nc4 {[%emt 0:01:36]} Bb5 {[%emt 0:00:05]} 29. Qg3+ {[%emt 0:08:05]} Kf8 {[%emt 0:00:14]} 30. Nxd6 {[%emt 0:02:27]} Bxe2 {[%emt 0:01:39]} 31. Nf5 {[%emt 0:00:14]} Qb4 {[%emt 0:05:04]} 32. h3 {[%emt 0:00:03]} Qxb2 {[%emt 0:07:05]} 33. Qd6+ {[%emt 0:00:06]} Kg8 {[%emt 0:00:34]} 34. Qb8+ {[%emt 0:00:18]} Kh7 {[%emt 0:00:02]} 35. Qc7 {[%emt 0:01:23]} Kg6 {[%emt 0:02:26]} 36. Qf4 {[%emt 0:01:21]} Nxd5 {[%emt 0:01:15]} 37. Qxe4 {[%emt 0:00:29]} Qc1+ {[%emt 0:00:06]} 38. Kh2 {[%emt 0:00:34]} Qf4+ {[%emt 0:00:05]} 39. Ng3+ {[%emt 0:00:27]} f5 {[%emt 0:00:00]} 40. Qxd5 {[%emt 0:01:07]} 1-0